bitfinex/quotes_SOLUSD_20250701
["timestamp","ask_amount","ask_price","bid_price","bid_amount"]
[1751338286281,18.64964886,153.44,153.43,6.21154123]
[1751338286503,18.64964886,153.44,153.43,12.72917141]
[1751338286681,18.64964886,153.44,153.43,7.83655058]
[1751338286997,18.64964886,153.44,153.43,12.72917141]
[1751338288504,18.64964886,153.45,153.43,12.72917141]
[1751338288804,18.64964886,153.45,153.44,4.89262083]
[1751338289177,16.28457708,153.52,153.44,4.89262083]
[1751338289178,147.7049,153.54,153.44,4.89262083]
[1751338289398,157.97262083,153.53,153.43,24.13062605]
[1751338289708,18.64964886,153.52,153.48,4.89262083]
[1751338290013,18.64964886,153.52,153.49,4.89262083]
[1751338290178,18.64964886,153.52,153.5,4.89262083]
[1751338290382,18.64964886,153.52,153.49,4.89262083]
[1751338290695,18.64964886,153.52,153.45,22.80873248]
[1751338290893,18.64964886,153.52,153.49,4.89262083]
[1751338291995,5.31910554,153.51,153.45,22.80873248]
[1751338292195,18.64964886,153.5,153.45,22.80873248]
[1751338292396,18.64964886,153.5,153.47,4.89262083]
[1751338293294,18.64964886,153.5,153.48,6.5155069]
[1751338294198,18.64964886,153.5,153.47,11.40845849]
[1751338294694,0.14216157,153.51,153.47,11.40845849]
[1751338294890,0.42648471,153.49,153.46,4.89262083]
[1751338295198,0.42648471,153.49,153.44,4.89262083]
[1751338295199,23.54226969,153.48,153.44,4.89262083]
[1751338295498,23.54226969,153.48,153.44,11.40982625]
[1751338297703,23.54226969,153.48,153.43,7.83637861]
[1751338297886,23.54226969,153.48,153.44,4.89262083]
[1751338299619,23.54226969,153.48,153.44,11.4095398]
[1751338301122,0.42648471,153.49,153.44,11.4095398]
[1751338301414,4.89262083,153.48,153.44,11.4095398]
[1751338303421,6.94166946,153.49,153.44,11.4095398]
[1751338303720,11.77262083,153.48,153.44,11.4095398]
[1751338304812,23.54226969,153.45,153.43,1.3189204]
[1751338305016,18.64964886,153.44,153.43,1.3189204]
[1751338306409,18.64964886,153.44,153.43,7.83655058]
[1751338306814,18.64964886,153.44,153.43,1.3189204]
[1751338308420,18.64964886,153.47,153.43,12.72917141]
[1751338308626,18.64964886,153.47,153.44,4.89262083]
[1751338308825,23.54226969,153.47,153.43,7.83655058]
[1751338309028,23.54226969,153.47,153.43,12.72917141]
[1751338310118,18.64964886,153.47,153.43,12.72917141]
[1751338311828,23.54226969,153.47,153.43,12.72917141]
[1751338312234,0.42648471,153.46,153.43,1.3189204]
[1751338312412,18.64964886,153.45,153.43,1.3189204]
[1751338312614,23.54226969,153.45,153.43,1.3189204]
[1751338314426,0.28432314,153.45,153.43,1.3189204]
[1751338314632,18.933972,153.45,153.43,1.3189204]
[1751338315332,18.64964886,153.46,153.43,12.72900131]
[1751338317833,23.54226969,153.46,153.43,1.3189204]
[1751338318029,4.89262083,153.44,153.43,1.3189204]
[1751338318237,5.31910554,153.44,153.43,1.3189204]
[1751338318415,0.42648471,153.44,153.43,1.3189204]
[1751338319721,5.31910554,153.44,153.43,1.3189204]
[1751338320420,0.42648471,153.44,153.43,1.3189204]
[1751338321310,5.31910554,153.44,153.43,1.3189204]
[1751338323030,19.07613357,153.44,153.43,1.3189204]
[1751338323227,23.9687544,153.44,153.43,1.3189204]
[1751338325742,19.07613357,153.44,153.43,1.3189204]
[1751338329126,23.9687544,153.44,153.43,1.3189204]
[1751338329328,30.48595982,153.44,153.43,1.3189204]
[1751338330044,19.07613357,153.44,153.43,1.3189204]
[1751338330422,25.95613357,153.44,153.43,1.3189204]
[1751338331749,30.8487544,153.44,153.43,1.3189204]
[1751338338356,25.95613357,153.44,153.43,1.3189204]
[1751338338736,25.95613357,153.44,153.43,1.4189204]
[1751338339131,30.8487544,153.44,153.43,1.4189204]
[1751338339548,37.36595982,153.44,153.43,1.4189204]
[1751338339931,30.8487544,153.44,153.43,1.4189204]
[1751338340349,37.36595982,153.44,153.43,1.4189204]
[1751338342630,30.8487544,153.44,153.43,1.4189204]
[1751338342836,37.36595982,153.44,153.43,1.4189204]
[1751338344859,32.47333899,153.44,153.43,1.4189204]
[1751338345156,37.36595982,153.44,153.43,1.4189204]
[1751338346864,25.95613357,153.44,153.43,1.4189204]
[1751338347074,25.52964886,153.44,153.43,7.93655058]
[1751338347365,6.88,153.44,153.43,12.82917141]
[1751338347675,18.64964886,153.47,153.43,12.82917141]
[1751338347852,18.64964886,153.47,153.46,4.89262083]
[1751338351062,18.64964886,153.47,153.45,4.89262083]
[1751338352170,18.64964886,153.47,153.44,11.40982625]
[1751338352379,18.64964886,153.45,153.43,1.4189204]
[1751338353461,23.54226969,153.45,153.43,1.4189204]
[1751338354369,23.9687544,153.46,153.43,1.4189204]
[1751338355181,146.2,153.48,153.45,4.89262083]
[1751338355481,146.2,153.48,153.47,4.89262083]
[1751338355773,6.94,153.5,153.47,4.89262083]
[1751338355953,6.94,153.5,153.49,4.89262083]
[1751338357287,6.94,153.5,153.49,11.40770324]
[1751338361166,6.94,153.5,153.49,6.51508241]
[1751338361362,6.94,153.5,153.49,11.40770324]
[1751338364057,0.42648471,153.54,153.49,11.40770324]
[1751338364261,0.42648471,153.54,153.51,4.89262083]
[1751338365484,0.42648471,153.54,153.52,6.51380927]
[1751338366292,0.42648471,153.54,153.51,11.40673937]
[1751338368774,18.64964886,153.55,153.52,4.89262083]
[1751338368996,18.64964886,153.55,153.51,11.40673937]
[1751338368997,23.54226969,153.55,153.51,11.40673937]
[1751338369185,18.64964886,153.55,153.51,11.40673937]
[1751338370082,18.64964886,153.53,153.51,6.51411854]
[1751338370301,18.64964886,153.51,153.46,16.289896]
[1751338370498,23.54226969,153.51,153.47,11.40855228]
[1751338371186,23.9687544,153.51,153.5,0.1]
[1751338375780,30.482988,153.51,153.5,0.1]
[1751338375980,56.482988,153.51,153.5,0.1]
[1751338379078,30.482988,153.51,153.5,0.1]
[1751338382508,26.0,153.49,153.44,0.1]
[1751338382807,46.768572,153.51,153.44,0.1]
[1751338382808,19.07613357,153.45,153.44,0.1]
[1751338384399,18.64964886,153.45,153.44,0.1]
[1751338384599,19.07613357,153.45,153.44,0.1]
[1751338384788,23.9687544,153.45,153.44,0.1]
[1751338384984,30.48553511,153.45,153.44,0.1]
[1751338385191,56.48553511,153.45,153.44,0.1]
[1751338386111,49.9687544,153.45,153.44,0.1]
[1751338388292,56.48553511,153.45,153.44,0.1]
[1751338390213,83.20553511,153.45,153.44,0.1]
[1751338391513,71.79613357,153.45,153.44,0.1]
[1751338391699,44.933972,153.45,153.44,0.1]
[1751338392199,18.933972,153.45,153.44,0.1]
[1751338392391,19.07613357,153.45,153.44,0.1]
[1751338398932,18.64964886,153.45,153.44,0.1]
[1751338399223,18.64964886,153.45,153.44,11.50982625]
[1751338399400,26.0,153.47,153.44,11.50982625]
[1751338399605,18.64964886,153.46,153.45,4.89262083]
[1751338400411,18.64964886,153.46,153.44,6.61720542]
[1751338400623,18.64964886,153.46,153.44,11.50982625]
[1751338404228,18.64964886,153.47,153.45,4.89262083]
[1751338405013,18.64964886,153.47,153.45,11.40904847]
[1751338405622,18.64964886,153.47,153.45,6.51642764]
[1751338408717,18.64964886,153.47,153.44,6.61711211]
[1751338409051,18.64964886,153.47,153.44,0.1]
[1751338409052,5.31910554,153.45,153.44,0.1]
[1751338409838,44.64964886,153.47,153.44,6.61710508]
[1751338410047,44.64964886,153.47,153.44,11.50972591]
[1751338411039,18.64964886,153.47,153.44,11.50972591]
[1751338411226,18.64964886,153.47,153.45,4.89262083]
[1751338413225,18.64964886,153.47,153.45,11.40902394]
[1751338414245,18.64964886,153.47,153.45,6.51640311]
[1751338414542,18.64964886,153.47,153.44,11.50970065]
[1751338418038,18.64964886,153.47,153.45,4.89262083]
[1751338418237,18.64964886,153.47,153.46,6.51635605]
[1751338423465,18.64964886,153.47,153.45,11.40925141]
[1751338423638,18.64964886,153.47,153.44,11.50964087]
[1751338424544,23.54226969,153.47,153.44,0.1]
[1751338424932,23.9687544,153.45,153.44,0.1]
[1751338426027,30.48553511,153.45,153.44,0.1]
[1751338427528,23.9687544,153.45,153.44,0.1]
[1751338428042,30.48553511,153.45,153.44,0.1]
[1751338431339,18.64964886,153.45,153.44,0.1]
[1751338432554,23.54226969,153.45,153.44,0.1]
[1751338432857,18.64964886,153.45,153.44,0.1]
[1751338433834,18.64964886,153.45,153.44,6.61720542]
[1751338434055,18.64964886,153.45,153.44,0.1]
[1751338441465,64.22713511,153.45,153.44,0.1]
[1751338441673,189.31975594,153.45,153.44,0.1]
[1751338441881,184.42713511,153.45,153.44,0.1]
[1751338444182,179.53451428,153.45,153.44,0.1]
[1751338444469,184.42713511,153.45,153.44,0.1]
[1751338445160,38.22713511,153.45,153.44,0.1]
[1751338446038,43.11975594,153.45,153.44,0.1]
[1751338447966,33.33451428,153.45,153.44,0.1]
[1751338448155,38.22713511,153.45,153.44,0.1]
[1751338448759,33.33451428,153.45,153.44,0.1]
[1751338448963,38.22713511,153.45,153.44,0.1]
[1751338450953,30.48553511,153.45,153.44,0.1]
[1751338451250,56.7990504,153.45,153.44,0.1]
[1751338451449,76.28226969,153.45,153.44,0.1]
[1751338451862,76.42443126,153.45,153.44,0.1]
[1751338452233,76.28226969,153.45,153.44,0.1]
[1751338452434,49.68443126,153.45,153.44,0.1]
[1751338452635,44.79181043,153.45,153.44,0.1]
[1751338452844,18.64964886,153.45,153.44,0.1]
[1751338453491,23.54226969,153.45,153.44,0.1]
[1751338453669,18.64964886,153.45,153.44,0.1]
[1751338453841,23.54226969,153.45,153.44,0.1]
[1751338454366,30.0590504,153.45,153.44,0.1]
[1751338454553,23.54226969,153.45,153.44,0.1]
[1751338454740,30.20121197,153.45,153.44,0.1]
[1751338454937,56.20121197,153.45,153.44,0.1]
[1751338456675,56.48553511,153.45,153.44,0.1]
[1751338456846,83.22553511,153.45,153.44,0.1]
[1751338457445,62.11815594,153.45,153.44,0.1]
[1751338462066,19.07613357,153.44,153.43,1.4189204]
[1751338462271,28.86137523,153.44,153.43,1.4189204]
[1751338464381,0.14216157,153.4,153.34,6.5213178]
[1751338464557,4.89262083,153.35,153.33,6.1272]
[1751338464762,18.64964886,153.36,153.33,6.1272]
[1751338464763,23.54226969,153.36,153.33,6.1272]
[1751338464968,18.64964886,153.36,153.33,6.1272]
[1751338465473,23.54226969,153.36,153.33,6.1272]
[1751338465671,23.54226969,153.36,153.33,12.64902759]
[1751338465876,23.54226969,153.36,153.33,6.1272]
[1751338466382,18.64964886,153.36,153.33,6.1272]
[1751338468274,18.64964886,153.36,153.34,6.52145558]
[1751338469762,33.7,153.39,153.34,11.41407641]
[1751338469999,18.64964886,153.38,153.35,4.89262083]
[1751338470368,18.64964886,153.38,153.36,6.52060511]
[1751338474405,23.54226969,153.38,153.34,6.52145558]
[1751338474698,18.64964886,153.36,153.34,6.52145558]
[1751338474871,23.54226969,153.38,153.34,6.52145558]
[1751338479100,23.54226969,153.38,153.34,11.41407641]
[1751338479273,18.64964886,153.38,153.34,11.41407641]
[1751338479471,23.54226969,153.38,153.34,6.52145558]
[1751338481872,6.96,153.39,153.35,4.89262083]
[1751338482181,18.64964886,153.38,153.35,4.89262083]
[1751338483079,18.64964886,153.38,153.36,6.52060511]
[1751338483606,18.64964886,153.38,153.35,11.41346609]
[1751338486395,18.64964886,153.38,153.34,11.41407641]
[1751338487110,18.64964886,153.38,153.34,6.52145558]
[1751338487414,18.64964886,153.38,153.34,11.41407641]
[1751338488276,18.64964886,153.38,153.35,4.89262083]
[1751338488475,18.64964886,153.38,153.35,11.41324467]
[1751338490902,6.96,153.39,153.37,4.89262083]
[1751338492103,6.96,153.39,153.38,4.89262083]
[1751338492608,165.04964886,153.43,153.38,29.36186282]
[1751338492818,18.84964886,153.43,153.41,4.89262083]
[1751338493104,0.2,153.43,153.42,4.89262083]
[1751338493604,0.2,153.43,153.41,4.89262083]
[1751338495405,0.2,153.43,153.4,11.41137209]
[1751338496115,0.2,153.43,153.41,4.89262083]
[1751338497695,0.2,153.43,153.42,6.51805501]
[1751338498210,0.2,153.43,153.42,11.41067584]
[1751338498895,0.2,153.43,153.42,6.51805501]
[1751338500608,0.2,153.43,153.41,11.4109406]
[1751338503112,0.2,153.43,153.41,6.51831977]
[1751338503415,0.2,153.5,153.46,26.0]
[1751338503614,0.2,153.5,153.43,7.9015]
[1751338503615,0.2,153.5,153.49,4.89262083]
[1751338503797,0.2,153.5,153.49,6.39462083]
[1751338504000,0.2,153.5,153.49,12.76402083]
[1751338505214,0.2,153.5,153.49,19.27910324]
[1751338509207,0.2,153.51,153.49,24.17172407]
[1751338509392,0.2,153.51,153.5,9.78524166]
[1751338509593,0.2,153.51,153.5,4.89262083]
[1751338510808,0.2,153.51,153.5,11.40727881]
[1751338517220,0.2,153.51,153.5,6.51465798]
[1751338517599,0.2,153.51,153.5,11.40727881]
[1751338526325,0.2,153.51,153.5,6.51465798]
[1751338527828,0.2,153.51,153.5,11.40727881]
[1751338530215,0.2,153.51,153.5,6.51465798]
[1751338530414,0.2,153.51,153.5,11.40727881]
[1751338537322,0.2,153.51,153.5,11.50727881]
[1751338538416,0.2,153.51,153.5,0.1]
[1751338538843,0.2,153.51,153.5,6.61465798]
[1751338539516,0.2,153.51,153.5,11.50727881]
[1751338540836,0.2,153.51,153.5,6.61465798]
[1751338541040,0.2,153.51,153.5,11.50727881]
[1751338554636,0.2,153.51,153.5,6.61465798]
[1751338554825,0.2,153.51,153.5,11.50727881]
[1751338562144,0.2,153.51,153.5,11.93376352]
[1751338562329,0.2,153.56,153.51,26.42648471]
[1751338562660,0.2,153.56,153.55,4.89262083]
[1751338562957,0.2,153.56,153.55,11.40515746]
[1751338564551,0.2,153.56,153.55,6.51253663]
[1751338565056,5.09262083,153.56,153.52,4.89262083]
[1751338565447,0.2,153.56,153.52,4.89262083]
[1751338565646,0.2,153.56,153.53,4.89262083]
[1751338567060,0.2,153.56,153.54,6.51296079]
[1751338567238,5.09262083,153.56,153.54,6.51296079]
[1751338567540,0.2,153.56,153.54,6.51296079]
[1751338572156,0.2,153.56,153.52,4.89262083]
[1751338572465,4.89262083,153.53,153.5,6.61450323]
[1751338572643,18.64964886,153.55,153.5,0.1]
[1751338572644,4.89262083,153.52,153.5,0.1]
[1751338574157,4.89262083,153.53,153.5,6.61456728]
[1751338577172,4.89262083,153.52,153.5,0.1]
[1751338577751,18.64964886,153.53,153.5,0.1]
[1751338577951,4.89262083,153.52,153.5,6.6146122]
[1751338579264,4.89262083,153.53,153.5,6.6146122]
[1751338586890,4.89262083,153.52,153.5,0.1]
[1751338587076,4.89262083,153.53,153.5,6.61465392]
[1751338588172,5.09262083,153.53,153.5,6.61465392]
[1751338590084,4.89262083,153.52,153.5,0.1]
[1751338590285,4.89262083,153.51,153.5,0.1]
[1751338591795,23.54226969,153.51,153.5,0.1]
[1751338591970,30.56443126,153.51,153.5,0.1]
[1751338599277,25.67181043,153.51,153.5,0.1]
[1751338599487,30.56443126,153.51,153.5,0.1]
[1751338602111,37.362988,153.51,153.5,0.1]
[1751338602302,65.571788,153.51,153.5,0.1]
[1751338604987,60.67916717,153.51,153.5,0.1]
[1751338605303,65.771788,153.51,153.5,0.1]
[1751338606387,59.2575544,153.51,153.5,0.1]
[1751338607280,65.771788,153.51,153.5,0.1]
[1751338613800,64.01289045,153.51,153.5,0.1]
[1751338622027,44.64964886,153.47,153.44,0.1]
[1751338622221,3.13372328,153.45,153.44,0.1]
[1751338622402,21.78337214,153.45,153.44,0.1]
[1751338625827,18.64964886,153.45,153.44,0.1]
[1751338626147,21.78337214,153.45,153.44,0.1]
[1751338626708,18.64964886,153.45,153.44,6.61720542]
[1751338627229,3.13372328,153.46,153.44,6.61720542]
[1751338627925,29.13372328,153.47,153.44,6.61720542]
[1751338628238,3.13372328,153.46,153.44,6.61720542]
[1751338628610,21.78337214,153.45,153.44,0.1]
[1751338632007,18.64964886,153.45,153.44,0.1]
[1751338632208,21.78337214,153.45,153.44,0.1]
[1751338637855,18.64964886,153.45,153.44,0.1]
[1751338638040,21.78337214,153.45,153.44,0.1]
[1751338644451,18.64964886,153.45,153.44,0.1]
[1751338644654,21.78337214,153.45,153.44,0.1]
[1751338649230,18.64964886,153.45,153.44,6.61720542]
[1751338649557,26.0,153.45,153.44,6.61720542]
[1751338650473,18.64964886,153.47,153.44,6.61720542]
[1751338650633,3.13372328,153.47,153.44,6.61720542]
[1751338651560,44.64964886,153.48,153.44,9.7509287]
[1751338651761,18.64964886,153.48,153.44,9.7509287]
[1751338652336,18.64964886,153.48,153.45,3.13372328]
[1751338652966,18.64964886,153.48,153.46,6.51635605]
[1751338653464,146.2,153.49,153.46,6.51635605]
[1751338653840,146.2,153.49,153.46,9.65007933]
[1751338655149,146.2,153.49,153.46,6.51635605]
[1751338655368,149.33372328,153.49,153.46,6.51635605]
[1751338655663,18.64964886,153.46,153.44,0.1]
[1751338655848,21.78337214,153.46,153.44,0.1]
[1751338656241,47.78337214,153.45,153.44,0.1]
[1751338656462,47.92553371,153.45,153.44,0.1]
[1751338657574,54.44231442,153.45,153.44,0.1]
[1751338657877,56.2079292,153.45,153.44,0.1]
[1751338659072,49.69114849,153.45,153.44,0.1]
[1751338662248,49.83331006,153.45,153.44,0.1]
[1751338662467,56.49225234,153.45,153.44,0.1]
[1751338663172,30.49225234,153.45,153.44,0.1]
[1751338664166,29.99225234,153.45,153.44,0.1]
[1751338664748,34.8915904,153.45,153.44,0.1]
[1751338665264,34.8915904,153.45,153.37,0.1]
[1751338665265,26.0,153.42,153.35,3.55288384]
[1751338665474,4.89933806,153.4,153.35,3.55288384]
[1751338665882,4.89933806,153.4,153.31,26.0]
[1751338666180,18.64964886,153.39,153.35,4.89933806]
[1751338666380,18.64964886,153.39,153.36,4.89933806]
[1751338667776,18.64964886,153.39,153.35,6.52103032]
[1751338668083,18.64964886,153.39,153.36,4.89933806]
[1751338668767,18.64964886,153.39,153.36,11.41954106]
[1751338669865,33.42,153.41,153.36,11.41954106]
[1751338670176,18.64964886,153.4,153.37,4.89933806]
[1751338670982,18.64964886,153.4,153.35,22.82360612]
[1751338671281,11.75933806,153.41,153.36,4.89933806]
[1751338671468,11.75933806,153.41,153.37,4.89933806]
[1751338672282,6.86,153.41,153.37,4.89933806]
[1751338672480,11.75933806,153.41,153.37,4.89933806]
[1751338673482,11.75933806,153.41,153.38,6.51975485]
[1751338673681,6.86,153.41,153.38,6.51975485]
[1751338674669,6.86,153.41,153.38,11.41909291]
[1751338675481,6.86,153.41,153.35,22.82360612]
[1751338675685,6.86,153.41,153.38,4.89933806]
[1751338676883,6.86,153.41,153.39,6.51932981]
[1751338678708,6.86,153.41,153.39,11.41866787]
[1751338680466,6.86,153.41,153.39,6.51932981]
[1751338680667,6.86,153.41,153.39,11.41866787]
[1751338682599,6.86,153.41,153.35,22.82360612]
[1751338682770,6.86,153.41,153.39,4.89933806]
[1751338683795,6.86,153.41,153.4,6.51890482]
[1751338687695,7.06,153.41,153.4,6.51890482]
[1751338688997,7.06,153.41,153.38,3.1355726]
[1751338691302,7.06,153.41,153.39,6.51932981]
[1751338696107,0.2,153.41,153.39,6.51932981]
[1751338698114,0.2,153.41,153.36,16.30051318]
[1751338698303,0.2,153.41,153.39,3.1355726]
[1751338699409,0.2,153.41,153.4,6.51890482]
[1751338700930,0.2,153.41,153.4,9.65447742]
[1751338701094,0.2,153.41,153.4,6.51890482]
[1751338702689,0.2,153.41,153.4,9.65447742]
[1751338722033,0.2,153.41,153.4,6.51890482]
[1751338722234,0.2,153.41,153.4,9.65447742]
[1751338748558,0.2,153.41,153.4,6.51890482]
[1751338748742,0.2,153.41,153.4,9.65447742]
[1751338751751,0.2,153.41,153.4,6.51890482]
[1751338752064,0.2,153.41,153.4,9.65447742]
[1751338760578,0.2,153.41,153.39,6.94581452]
[1751338760865,0.2,153.41,153.4,3.1355726]
[1751338762671,0.2,153.41,153.4,9.65447742]
[1751338764366,0.2,153.41,153.4,6.51890482]
[1751338764560,0.2,153.41,153.4,9.65447742]
[1751338772584,8.6114,153.48,153.41,0.42648471]
[1751338772780,8.6114,153.48,153.47,3.1355726]
[1751338773591,8.6114,153.48,153.47,9.65150405]
[1751338774285,8.6114,153.48,153.47,6.51593145]
[1751338774493,8.6114,153.48,153.45,22.80848658]
[1751338775372,21.78522146,153.47,153.45,6.51678071]
[1751338777278,21.78522146,153.47,153.44,6.51720542]
[1751338777795,18.64964886,153.47,153.44,6.51720542]
[1751338782000,18.64964886,153.47,153.44,11.41382805]
[1751338783786,18.64964886,153.47,153.43,4.89662263]
[1751338784393,8.6114,153.48,153.44,4.89662263]
[1751338784580,8.6114,153.48,153.46,4.89662263]
[1751338784901,7.04,153.48,153.47,4.89662263]
[1751338785810,7.04,153.48,153.47,11.41255408]
[1751338792097,0.2,153.48,153.47,11.41255408]
[1751338797813,0.2,153.48,153.47,9.64757656]
[1751338804725,0.2,153.48,153.45,16.29169696]
[1751338805025,0.2,153.48,153.47,3.13164511]
[1751338805326,0.2,153.48,153.45,16.29169696]
[1751338805518,0.2,153.48,153.47,3.13164511]
[1751338806912,0.2,153.48,153.47,9.64757656]
[1751338807611,0.2,153.48,153.47,6.51593145]
[1751338808224,0.2,153.48,153.47,9.64757656]
[1751338809409,0.2,153.48,153.47,6.51593145]
[1751338809610,0.2,153.48,153.46,6.51632628]
[1751338811709,0.2,153.48,153.46,9.64797139]
[1751338811907,0.2,153.48,153.46,11.41104117]
[1751338812811,0.2,153.48,153.47,4.89471489]
[1751338813532,0.2,153.48,153.46,11.41104117]
[1751338814112,0.2,153.48,153.47,4.89471489]
[1751338814933,0.2,153.48,153.46,4.89471489]
[1751338816039,0.2,153.48,153.47,6.51593145]
[1751338816729,0.2,153.48,153.43,16.29407318]
[1751338817031,0.2,153.48,153.45,4.89471489]
[1751338818132,0.2,153.48,153.44,4.89471489]
[1751338818933,0.2,153.48,153.45,6.51678071]
[1751338819228,0.2,153.48,153.45,11.4114956]
[1751338820231,0.2,153.48,153.45,6.51678071]
[1751338820408,0.2,153.48,153.45,11.4114956]
[1751338822233,18.84964886,153.48,153.45,11.4114956]
[1751338822537,18.84964886,153.48,153.45,6.51678071]
[1751338824939,23.74436375,153.48,153.45,6.51678071]
[1751338825143,23.74436375,153.48,153.42,6.51805501]
[1751338825144,18.64964886,153.46,153.42,6.51805501]
[1751338825315,0.2,153.48,153.45,4.89471489]
[1751338825517,0.2,153.48,153.46,4.89471489]
[1751338826026,0.2,153.48,153.47,4.89471489]
[1751338826534,0.2,153.48,153.47,11.41064634]
[1751338837948,0.2,153.48,153.47,9.64678292]
[1751338839341,0.2,153.48,153.47,14.81779065]
[1751338840429,0.2,153.5,153.47,57.10761928]
[1751338840736,0.2,153.5,153.49,3.13085147]
[1751338842158,0.2,153.5,153.49,9.64593388]
[1751338842731,0.2,153.5,153.49,10.07241859]
[1751338843342,0.2,153.5,153.49,13.31849409]
[1751338843738,0.2,153.5,153.49,15.07644654]
[1751338845355,0.2,153.5,153.49,41.07644654]
[1751338845550,0.2,153.51,153.5,0.42648471]
[1751338845726,0.2,153.51,153.5,10.20409255]
[1751338846548,0.2,153.51,153.5,16.71875053]
[1751338846942,0.2,153.53,153.52,26.0]
[1751338847261,0.2,153.53,153.52,62.23760784]
[1751338848557,0.2,153.53,153.52,68.75141711]
[1751338852150,0.2,153.53,153.52,63.86261319]
[1751338853258,0.2,153.53,153.52,37.40261319]
[1751338854058,0.2,153.53,153.52,32.51380927]
[1751338854266,0.2,153.53,153.52,11.40261319]
[1751338859169,0.2,153.53,153.52,4.88880392]
[1751338860874,0.2,153.53,153.52,36.23760784]
[1751338861169,0.2,153.53,153.52,42.75141711]
[1751338862165,0.2,153.53,153.52,37.86261319]
[1751338862978,0.2,153.53,153.52,11.40261319]
[1751338863151,0.2,153.53,153.52,4.88880392]
[1751338863873,0.2,153.53,153.51,11.40303752]
[1751338865154,0.2,153.53,153.52,4.88880392]
[1751338866951,0.2,153.53,153.52,11.40261319]
[1751338871580,0.2,153.53,153.52,16.29141711]
[1751338873665,0.2,153.53,153.52,42.71790182]
[1751338873864,0.2,153.55,153.54,26.0]
[1751338874061,0.2,153.56,153.55,0.42648471]
[1751338874279,0.2,153.57,153.55,5.31528863]
[1751338874479,0.2,153.57,153.56,31.77528863]
[1751338874981,0.2,153.57,153.56,38.28740115]
[1751338875875,0.2,153.57,153.56,64.28740115]
[1751338878583,0.2,153.57,153.56,63.86091644]
[1751338878771,0.2,153.57,153.56,37.86091644]
[1751338879373,0.2,153.57,153.56,38.28740115]
[1751338885510,0.2,153.57,153.56,32.93859723]
[1751338885690,0.2,153.57,153.56,6.51211252]
[1751338885890,0.2,153.57,153.56,11.40091644]
[1751338886297,0.2,153.57,153.56,11.68523958]
[1751338887415,0.2,153.57,153.56,11.78523958]
[1751338891428,0.2,153.57,153.56,38.22523958]
[1751338894723,0.2,153.57,153.56,37.94091644]
[1751338895430,0.2,153.57,153.56,6.61211252]
[1751338896825,0.2,153.57,153.56,11.50091644]
[1751338897029,0.2,153.57,153.56,38.22523958]
[1751338909722,0.2,153.57,153.56,38.36740115]
[1751338909945,0.2,153.57,153.56,33.47859723]
[1751338910124,0.2,153.57,153.56,6.61211252]
[1751338910451,0.2,153.57,153.56,37.94091644]
[1751338915250,0.2,153.57,153.56,33.05211252]
[1751338915457,0.2,153.57,153.56,37.94091644]
[1751338915656,0.2,153.57,153.56,11.50091644]
[1751338915854,0.2,153.57,153.56,6.61211252]
[1751338917659,0.2,153.57,153.56,0.1]
[1751338917841,5.08880392,153.57,153.56,0.1]
[1751338919037,0.2,153.57,153.56,0.1]
[1751338919363,5.08880392,153.57,153.56,0.1]
[1751338919947,38.23064126,153.57,153.5,0.1]
[1751338920149,4.88880392,153.53,153.5,0.1]
[1751338920351,4.88880392,153.53,153.51,6.5142336]
[1751338920659,4.88880392,153.54,153.51,6.5142336]
[1751338922052,4.88880392,153.52,153.5,6.61451326]
[1751338922251,4.88880392,153.52,153.5,6.61462592]
[1751338922744,18.64964886,153.55,153.5,6.61462592]
[1751338922948,4.88880392,153.53,153.5,6.61462592]
[1751338923557,6.8,153.56,153.5,27.79007479]
[1751338923743,4.88880392,153.55,153.51,4.88880392]
[1751338924142,4.88880392,153.55,153.52,6.51380927]
[1751338925255,4.88880392,153.55,153.51,6.5142336]
[1751338925669,4.88880392,153.55,153.51,11.40303752]
[1751338925867,6.8,153.56,153.52,4.88880392]
[1751338926049,6.8,153.56,153.53,4.88880392]
[1751338926248,6.8,153.56,153.54,4.88880392]
[1751338927465,6.8,153.56,153.55,6.51253663]